fUSD/lending_fUSD_20260527
["ID","MTS","AMOUNT","RATE_DAILY","PERIOD"]
[423109181,1779856246000,-1225.0,0.00035008,2]
[423109174,1779856246000,-183.27,0.00035,2]
[423109171,1779856246000,-151.0,0.00035,7]
[423109170,1779856246000,-212.821354,0.00035,7]
[423109183,1779856246000,-150.0,0.00035124,2]
[423109191,1779856246000,-300.0,0.00035438,2]
[423109185,1779856246000,-241.63062614,0.00035189,2]
[423109199,1779856246000,-300.50747744,0.00035438,2]
[423109186,1779856246000,-928.0,0.00035414,2]
[423109188,1779856246000,-300.0,0.00035438,2]
[423109202,1779856246000,-300.0,0.00035438,2]
[423109203,1779856246000,-300.0,0.00035438,2]
[423109193,1779856246000,-300.0,0.00035438,2]
[423109204,1779856246000,-464.48677942,0.00035438,2]
[423109198,1779856246000,-1634.44392223,0.00035438,2]
[423109196,1779856246000,-300.0,0.00035438,2]
[423109197,1779856246000,-300.0,0.00035438,2]
[423109195,1779856246000,-310.02493426,0.00035438,2]
[423109200,1779856246000,-300.0,0.00035438,2]
[423109201,1779856246000,-594.73329586,0.00035438,2]
[423109205,1779856246000,-300.0,0.00035438,2]
[423109172,1779856246000,-151.0,0.00035,7]
[423109190,1779856246000,-300.0,0.00035438,2]
[423109175,1779856246000,-268.384628,0.00035,7]
[423109160,1779856246000,-351.279491,0.00035,7]
[423109179,1779856246000,-151.0,0.00035,7]
[423109151,1779856246000,-151.0,0.00035,7]
[423109153,1779856246000,-184.12909,0.00035,7]
[423109152,1779856246000,-151.0,0.00035,7]
[423109145,1779856246000,-151.0,0.00035,7]
[423109144,1779856246000,-151.0,0.00035,7]
[423109146,1779856246000,-151.0,0.00035,7]
[423109143,1779856246000,-151.0,0.00035,7]
[423109150,1779856246000,-151.0,0.00035,7]
[423109149,1779856246000,-5001.62399452,0.00035,30]
[423109147,1779856246000,-156.316428,0.00035,7]
[423109148,1779856246000,-199.66518691,0.00035,30]
[423109155,1779856246000,-184.12909,0.00035,7]
[423109156,1779856246000,-184.12909,0.00035,7]
[423109165,1779856246000,-151.0,0.00035,7]
[423109154,1779856246000,-184.12909,0.00035,7]
[423109157,1779856246000,-151.0,0.00035,7]
[423109217,1779856246000,-300.0,0.00035438,2]
[423109161,1779856246000,-351.279491,0.00035,7]
[423109158,1779856246000,-351.279491,0.00035,7]
[423109163,1779856246000,-151.0,0.00035,7]
[423109162,1779856246000,-151.0,0.00035,7]
[423109166,1779856246000,-151.0,0.00035,7]
[423109164,1779856246000,-151.0,0.00035,7]
[423109159,1779856246000,-351.279491,0.00035,7]
[423109168,1779856246000,-212.821354,0.00035,7]
[423109176,1779856246000,-268.384628,0.00035,7]
[423109177,1779856246000,-268.384628,0.00035,7]
[423109178,1779856246000,-268.384628,0.00035,7]
[423109167,1779856246000,-212.821354,0.00035,7]
[423109173,1779856246000,-218.722738,0.00035,7]
[423109206,1779856246000,-578.28315025,0.00035438,2]
[423109194,1779856246000,-1148.83589152,0.00035438,2]
[423109211,1779856246000,-300.0,0.00035438,2]
[423109233,1779856246000,-300.0,0.00035438,2]
[423109238,1779856246000,-300.0,0.00035438,2]
[423109242,1779856246000,-300.0,0.00035438,2]
[423109247,1779856246000,-302.03034641,0.00035438,2]
[423109257,1779856246000,-1148.83589152,0.00035438,2]
[423109251,1779856246000,-300.0,0.00035438,2]
[423109248,1779856246000,-300.0,0.00035438,2]
[423109250,1779856246000,-1263.96825586,0.00035438,2]
[423109246,1779856246000,-300.0,0.00035438,2]
[423109258,1779856246000,-310.02493426,0.00035438,2]
[423109249,1779856246000,-300.0,0.00035438,2]
[423109253,1779856246000,-300.0,0.00035438,2]
[423109252,1779856246000,-300.0,0.00035438,2]
[423109254,1779856246000,-300.0,0.00035438,2]
[423109243,1779856246000,-302.21937029,0.00035438,2]
[423109256,1779856246000,-300.0,0.00035438,2]
[423109259,1779856246000,-300.0,0.00035438,2]
[423109261,1779856246000,-1634.44392223,0.00035438,2]
[423109269,1779856246000,-300.0,0.00035438,2]
[423109262,1779856246000,-300.50747744,0.00035438,2]
[423109268,1779856246000,-578.28315025,0.00035438,2]
[423109260,1779856246000,-300.0,0.00035438,2]
[423109264,1779856246000,-300.0,0.00035438,2]
[423109263,1779856246000,-300.0,0.00035438,2]
[423109270,1779856246000,-452.52893397,0.00035438,2]
[423109210,1779856246000,-300.0,0.00035438,2]
[423109265,1779856246000,-300.0,0.00035438,2]
[423109266,1779856246000,-464.48677942,0.00035438,2]
[423109272,1779856246000,-300.0,0.00035438,2]
[423109271,1779856246000,-300.0,0.00035438,2]
[423109255,1779856246000,-950.32029804,0.00035438,2]
[423109244,1779856246000,-300.0,0.00035438,2]
[423109267,1779856246000,-300.0,0.00035438,2]
[423109245,1779856246000,-300.99795142,0.00035438,2]
[423109239,1779856246000,-1068.40163352,0.00035438,2]
[423109207,1779856246000,-300.0,0.00035438,2]
[423109208,1779856246000,-452.52893397,0.00035438,2]
[423109214,1779856246000,-484.76763572,0.00035438,2]
[423109215,1779856246000,-310.28230408,0.00035438,2]
[423109213,1779856246000,-300.0,0.00035438,2]
[423109218,1779856246000,-300.0,0.00035438,2]
[423109212,1779856246000,-300.0,0.00035438,2]
[423109216,1779856246000,-300.0,0.00035438,2]
[423109220,1779856246000,-300.0,0.00035438,2]
[423109228,1779856246000,-300.0,0.00035438,2]
[423109229,1779856246000,-300.0,0.00035438,2]
[423109231,1779856246000,-300.0,0.00035438,2]
[423109230,1779856246000,-300.0,0.00035438,2]
[423109209,1779856246000,-300.0,0.00035438,2]
[423109221,1779856246000,-300.0,0.00035438,2]
[423109223,1779856246000,-300.0,0.00035438,2]
[423109241,1779856246000,-727.07827244,0.00035438,2]
[423109236,1779856246000,-605.31118564,0.00035438,2]
[423109232,1779856246000,-300.0,0.00035438,2]
[423109234,1779856246000,-300.0,0.00035438,2]
[423109235,1779856246000,-300.0,0.00035438,2]
[423109237,1779856246000,-300.0,0.00035438,2]
[423109224,1779856246000,-300.0,0.00035438,2]
[423109222,1779856246000,-300.0,0.00035438,2]
[423109226,1779856246000,-300.0,0.00035438,2]
[423109240,1779856246000,-894.65434383,0.00035438,2]
[423109227,1779856246000,-300.0,0.00035438,2]
[423109225,1779856246000,-300.0,0.00035438,2]
[423109219,1779856246000,-313.10763464,0.00035438,2]
[423109338,1779856247000,-5821.938672,0.0003571,2]
[423109355,1779856247000,-273.3,0.00036153,30]
[423109325,1779856247000,-151.0,0.00035684,30]
[423109333,1779856247000,-2000.0,0.000357,120]
[423109344,1779856247000,-150.0,0.00035951,2]
[423109348,1779856247000,-400.0,0.00035951,2]
[423109351,1779856247000,-400.65747327,0.00035951,2]
[423109357,1779856247000,-2000.0,0.00036192,30]
[423109359,1779856247000,-314.46,0.00036359,30]
[423109353,1779856247000,-320.0,0.00036,120]
[423109342,1779856247000,-184.7831,0.00035837,2]
[423109346,1779856247000,-150.0,0.00035951,2]
[423109385,1779856247000,-25280.76458875,0.00036891,7]
[423109362,1779856247000,-624.04,0.00036526,120]
[423109364,1779856247000,-624.04,0.00036526,120]
[423109372,1779856247000,-500.0,0.00036869,120]
[423109387,1779856247000,-248.54033598,0.00036899,2]
[423109376,1779856247000,-551.06,0.0003689,120]
[423109370,1779856247000,-350.83,0.00036651,30]
[423109379,1779856247000,-796.52,0.0003689,7]
[423109389,1779856247000,-800.0,0.00036915,14]
[423109374,1779856247000,-592.01,0.0003689,120]
[423109391,1779856247000,-800.0,0.00036915,14]
[423109329,1779856247000,-185.0,0.00035684,30]
[423109381,1779856247000,-509.01,0.0003689,2]
[423109366,1779856247000,-17433.432,0.0003654,30]
[423109340,1779856247000,-500.0,0.00035773,120]
[423109292,1779856247000,-200.0,0.00035616,90]
[423109327,1779856247000,-158.9303172,0.00035684,30]
[423109383,1779856247000,-500.0,0.0003689,120]
[423109273,1779856247000,-300.0,0.00035438,2]
[423109280,1779856247000,-174.69,0.00035616,2]
[423109275,1779856247000,-25280.76458875,0.00035542,7]
[423109274,1779856247000,-300.0,0.00035438,2]
[423109284,1779856247000,-200.0,0.00035616,90]
[423109286,1779856247000,-200.0,0.00035616,90]
[423109277,1779856247000,-4515.01183057,0.0003561,2]
[423109276,1779856247000,-314.46,0.00035607,30]
[423109282,1779856247000,-200.0,0.00035616,90]
[423109278,1779856247000,-151.90425723,0.00035616,7]
[423109288,1779856247000,-200.0,0.00035616,90]
[423109331,1779856247000,-160.0,0.00035684,30]
[423109290,1779856247000,-200.0,0.00035616,90]
[423109298,1779856247000,-200.0,0.00035616,90]
[423109296,1779856247000,-200.0,0.00035616,90]
[423109302,1779856247000,-200.0,0.00035616,90]
[423109304,1779856247000,-200.0,0.00035616,90]
[423109300,1779856247000,-200.0,0.00035616,90]
[423109309,1779856247000,-200.0,0.00035616,90]
[423109313,1779856247000,-3893.1663901,0.00035677,2]
[423109311,1779856247000,-200.0,0.00035616,90]
[423109306,1779856247000,-200.0,0.00035616,90]
[423109317,1779856247000,-154.0,0.00035682,30]
[423109315,1779856247000,-158.0,0.00035682,30]
[423109336,1779856247000,-80782.1248556,0.0003571,2]
[423109294,1779856247000,-200.0,0.00035616,90]
[423109368,1779856247000,-153.22,0.000366,30]
[423109492,1779856247000,-200.0,0.00036941,2]
[423109402,1779856247000,-800.0,0.00036915,14]
[423109462,1779856247000,-200.0,0.00036941,2]
[423109464,1779856247000,-200.0,0.00036941,2]
[423109485,1779856247000,-200.0,0.00036941,2]
[423109477,1779856247000,-200.0,0.00036941,2]
[423109482,1779856247000,-200.0,0.00036941,2]
[423109476,1779856247000,-200.0,0.00036941,2]
[423109470,1779856247000,-200.0,0.00036941,2]
[423109466,1779856247000,-200.0,0.00036941,2]
[423109468,1779856247000,-200.0,0.00036941,2]
[423109475,1779856247000,-200.0,0.00036941,2]
[423109479,1779856247000,-200.0,0.00036941,2]
[423109481,1779856247000,-200.0,0.00036941,2]
[423109457,1779856247000,-200.0,0.00036941,2]
[423109474,1779856247000,-200.0,0.00036941,2]
[423109489,1779856247000,-200.0,0.00036941,2]
[423109494,1779856247000,-200.0,0.00036941,2]
[423109491,1779856247000,-200.0,0.00036941,2]
[423109500,1779856247000,-200.0,0.00036941,2]
[423109504,1779856247000,-200.0,0.00036941,2]
[423109496,1779856247000,-200.0,0.00036941,2]
[423109499,1779856247000,-200.0,0.00036941,2]
[423109502,1779856247000,-200.0,0.00036941,2]
[423109506,1779856247000,-200.0,0.00036941,2]
[423109508,1779856247000,-200.0,0.00036941,2]
[423109510,1779856247000,-200.0,0.00036941,2]
[423109393,1779856247000,-800.0,0.00036915,14]
[423109472,1779856247000,-200.0,0.00036941,2]
[423109451,1779856247000,-800.0,0.00036915,14]
[423109486,1779856247000,-200.0,0.00036941,2]
[423109453,1779856247000,-387.0,0.00036915,14]
[423109404,1779856247000,-800.0,0.00036915,14]
[423109460,1779856247000,-200.0,0.00036941,2]
[423109409,1779856247000,-800.0,0.00036915,14]
[423109406,1779856247000,-800.0,0.00036915,14]
[423109395,1779856247000,-800.0,0.00036915,14]
[423109398,1779856247000,-800.0,0.00036915,14]
[423109410,1779856247000,-800.0,0.00036915,14]
[423109400,1779856247000,-800.0,0.00036915,14]
[423109412,1779856247000,-800.0,0.00036915,14]
[423109414,1779856247000,-800.0,0.00036915,14]
[423109428,1779856247000,-800.0,0.00036915,14]
[423109430,1779856247000,-800.0,0.00036915,14]
[423109432,1779856247000,-800.0,0.00036915,14]
[423109416,1779856247000,-800.0,0.00036915,14]
[423109436,1779856247000,-800.0,0.00036915,14]
[423109449,1779856247000,-800.0,0.00036915,14]
[423109455,1779856247000,-200.0,0.00036941,2]
[423109447,1779856247000,-800.0,0.00036915,14]
[423109444,1779856247000,-800.0,0.00036915,14]
[423109442,1779856247000,-800.0,0.00036915,14]
[423109438,1779856247000,-800.0,0.00036915,14]
[423109440,1779856247000,-800.0,0.00036915,14]
[423109422,1779856247000,-800.0,0.00036915,14]
[423109419,1779856247000,-800.0,0.00036915,14]
[423109424,1779856247000,-800.0,0.00036915,14]
[423109434,1779856247000,-800.0,0.00036915,14]
[423109426,1779856247000,-800.0,0.00036915,14]
[423109564,1779856248000,-314.46,0.00037111,60]
[423109553,1779856248000,-800.0,0.00036941,30]
[423109561,1779856248000,-653.76632367,0.00037,120]
[423109565,1779856248000,-426.22087854,0.000373,30]
[423109563,1779856248000,-500.0,0.000371,7]
[423109545,1779856248000,-800.0,0.00036941,30]
[423109548,1779856248000,-800.0,0.00036941,30]
[423109544,1779856248000,-812.0,0.00036941,30]
[423109543,1779856248000,-163.0,0.00036941,2]
[423109551,1779856248000,-800.0,0.00036941,30]
[423109562,1779856248000,-494.0,0.00037,120]
[423109550,1779856248000,-800.0,0.00036941,30]
[423109547,1779856248000,-800.0,0.00036941,30]
[423109554,1779856248000,-800.0,0.00036941,30]
[423109577,1779856248000,-500.0,0.00037799,2]
[423109555,1779856248000,-800.0,0.00036941,30]
[423109558,1779856248000,-3942.88,0.00037,14]
[423109560,1779856248000,-215.46156935,0.00037,30]
[423109559,1779856248000,-1341.79059644,0.00037,20]
[423109556,1779856248000,-800.0,0.00036941,30]
[423109557,1779856248000,-800.0,0.00036941,30]
[423109571,1779856248000,-199.97,0.00037435,120]
[423109566,1779856248000,-426.22087854,0.000373,30]
[423109569,1779856248000,-187.9178349,0.0003741,120]
[423109575,1779856248000,-512.81905623,0.00037729,2]
[423109568,1779856248000,-164.29313982,0.0003731,5]
[423109576,1779856248000,-500.0,0.00037799,2]
[423109572,1779856248000,-150.0,0.00037449,2]
[423109546,1779856248000,-800.0,0.00036941,30]
[423109552,1779856248000,-278.0,0.00036941,30]
[423109549,1779856248000,-800.0,0.00036941,30]
[423109515,1779856248000,-200.0,0.00036941,2]
[423109541,1779856248000,-200.0,0.00036941,2]
[423109574,1779856248000,-471.53212381,0.00037615,2]
[423109512,1779856248000,-200.0,0.00036941,2]
[423109514,1779856248000,-200.0,0.00036941,2]
[423109513,1779856248000,-200.0,0.00036941,2]
[423109522,1779856248000,-500.0,0.00036941,2]
[423109524,1779856248000,-500.0,0.00036941,2]
[423109517,1779856248000,-200.0,0.00036941,2]
[423109516,1779856248000,-200.0,0.00036941,2]
[423109518,1779856248000,-347.0,0.00036941,2]
[423109525,1779856248000,-521.0,0.00036941,2]
[423109519,1779856248000,-500.0,0.00036941,2]
[423109523,1779856248000,-500.0,0.00036941,2]
[423109520,1779856248000,-500.0,0.00036941,2]
[423109521,1779856248000,-500.0,0.00036941,2]
[423109527,1779856248000,-200.0,0.00036941,2]
[423109535,1779856248000,-200.0,0.00036941,2]
[423109537,1779856248000,-200.0,0.00036941,2]
[423109536,1779856248000,-200.0,0.00036941,2]
[423109538,1779856248000,-200.0,0.00036941,2]
[423109529,1779856248000,-200.0,0.00036941,2]
[423109526,1779856248000,-200.0,0.00036941,2]
[423109528,1779856248000,-200.0,0.00036941,2]
[423109530,1779856248000,-200.0,0.00036941,2]
[423109531,1779856248000,-200.0,0.00036941,2]
[423109534,1779856248000,-200.0,0.00036941,2]
[423109532,1779856248000,-200.0,0.00036941,2]
[423109533,1779856248000,-200.0,0.00036941,2]
[423109540,1779856248000,-200.0,0.00036941,2]
[423109539,1779856248000,-200.0,0.00036941,2]
[423109542,1779856248000,-200.0,0.00036941,2]
[423109570,1779856248000,-199.97,0.00037435,120]
[423109640,1779856248000,-172.296715,0.00038356,30]
[423109573,1779856248000,-400.0,0.00037449,2]
[423109608,1779856248000,-155.0,0.00038,120]
[423109612,1779856248000,-299.20813736,0.000381,33]
[423109610,1779856248000,-1225.0,0.00038008,2]
[423109611,1779856248000,-512.81905623,0.00038083,2]
[423109609,1779856248000,-285.26081775,0.00038,120]
[423109613,1779856248000,-21683.22,0.000381,2]
[423109614,1779856248000,-535.13249543,0.00038123,120]
[423109619,1779856248000,-535.13249543,0.00038271,120]
[423109621,1779856248000,-306.45,0.00038276,60]
[423109622,1779856248000,-226.3,0.00038276,60]
[423109631,1779856248000,-154.85654,0.00038356,30]
[423109623,1779856248000,-4389.2652235,0.00038284,120]
[423109626,1779856248000,-151.22014887,0.0003835,120]
[423109625,1779856248000,-624.04,0.00038299,120]
[423109627,1779856248000,-500.0,0.0003835,30]
[423109624,1779856248000,-535.13249543,0.00038286,120]
[423109629,1779856248000,-176.292006,0.00038356,30]
[423109630,1779856248000,-164.487155,0.00038356,30]
[423109628,1779856248000,-166.483048,0.00038356,30]
[423109620,1779856248000,-20372.29,0.00038276,60]
[423109633,1779856248000,-292.752533,0.00038356,30]
[423109641,1779856248000,-1077.141984,0.00038356,30]
[423109632,1779856248000,-151.0,0.00038356,30]
[423109639,1779856248000,-1077.141984,0.00038356,30]
[423109638,1779856248000,-172.296715,0.00038356,30]
[423109637,1779856248000,-220.678487,0.00038356,30]
[423109634,1779856248000,-300.824208,0.00038356,30]
[423109635,1779856248000,-172.296715,0.00038356,30]
[423109567,1779856248000,-426.22087854,0.000373,30]
[423109615,1779856248000,-273.3,0.00038125,30]
[423109607,1779856248000,-160.0,0.00038,120]
[423109636,1779856248000,-1077.141984,0.00038356,30]
[423109605,1779856248000,-535.13249543,0.00037938,120]
[423109618,1779856248000,-21683.22,0.000382,2]
[423109578,1779856248000,-500.0,0.00037799,2]
[423109590,1779856248000,-500.0,0.000378,2]
[423109579,1779856248000,-500.0,0.00037799,2]
[423109591,1779856248000,-500.0,0.000378,2]
[423109581,1779856248000,-500.0,0.00037799,2]
[423109582,1779856248000,-500.0,0.00037799,2]
[423109588,1779856248000,-500.0,0.000378,2]
[423109587,1779856248000,-500.0,0.000378,2]
[423109583,1779856248000,-500.0,0.00037799,2]
[423109586,1779856248000,-500.0,0.000378,2]
[423109584,1779856248000,-562.84,0.00037799,2]
[423109585,1779856248000,-500.0,0.000378,2]
[423109589,1779856248000,-500.0,0.000378,2]
[423109592,1779856248000,-500.0,0.000378,2]
[423109580,1779856248000,-500.0,0.00037799,2]
[423109599,1779856248000,-2000.0,0.00037808,30]
[423109616,1779856248000,-512.81905623,0.00038139,2]
[423109594,1779856248000,-500.0,0.000378,2]
[423109604,1779856248000,-314.46,0.00037863,60]
[423109597,1779856248000,-844.26,0.000378,2]
[423109596,1779856248000,-500.0,0.000378,2]
[423109598,1779856248000,-21683.22,0.000378,2]
[423109606,1779856248000,-535.13249543,0.0003797,120]
[423109602,1779856248000,-1024.6556,0.00037825,30]
[423109593,1779856248000,-500.0,0.000378,2]
[423109603,1779856248000,-535.13249543,0.00037833,120]
[423109595,1779856248000,-500.0,0.000378,2]
[423109617,1779856248000,-512.81905623,0.00038153,2]
[423109601,1779856248000,-535.13249543,0.00037813,120]
[423109600,1779856248000,-535.13249543,0.00037809,120]
[423109683,1779856249000,-151.0,0.00038356,30]
[423109674,1779856249000,-1664.813739,0.00038356,30]
[423109675,1779856249000,-151.0,0.00038356,30]
[423109677,1779856249000,-1664.813739,0.00038356,30]
[423109673,1779856249000,-151.0,0.00038356,30]
[423109678,1779856249000,-558.740342,0.00038356,30]
[423109681,1779856249000,-324.289581,0.00038356,30]
[423109680,1779856249000,-324.289581,0.00038356,30]
[423109682,1779856249000,-151.0,0.00038356,30]
[423109684,1779856249000,-558.740342,0.00038356,30]
[423109676,1779856249000,-151.0,0.00038356,30]
[423109685,1779856249000,-558.740342,0.00038356,30]
[423109691,1779856249000,-151.0,0.00038356,30]
[423109687,1779856249000,-324.289581,0.00038356,30]
[423109686,1779856249000,-324.289581,0.00038356,30]
[423109688,1779856249000,-151.0,0.00038356,30]
[423109690,1779856249000,-235.518156,0.00038356,30]
[423109696,1779856249000,-151.0,0.00038356,30]
[423109697,1779856249000,-151.0,0.00038356,30]
[423109694,1779856249000,-151.0,0.00038356,30]
[423109698,1779856249000,-151.0,0.00038356,30]
[423109695,1779856249000,-213.900808,0.00038356,30]
[423109689,1779856249000,-217.609166,0.00038356,30]
[423109669,1779856249000,-247.673572,0.00038356,30]
[423109692,1779856249000,-151.0,0.00038356,30]
[423109679,1779856249000,-558.740342,0.00038356,30]
[423109666,1779856249000,-151.0,0.00038356,30]
[423109655,1779856249000,-1664.813739,0.00038356,30]
[423109665,1779856249000,-151.0,0.00038356,30]
[423109693,1779856249000,-151.0,0.00038356,30]
[423109643,1779856249000,-1077.141984,0.00038356,30]
[423109644,1779856249000,-347.61492,0.00038356,30]
[423109642,1779856249000,-172.296715,0.00038356,30]
[423109645,1779856249000,-347.61492,0.00038356,30]
[423109647,1779856249000,-347.61492,0.00038356,30]
[423109652,1779856249000,-151.0,0.00038356,30]
[423109649,1779856249000,-201.37303,0.00038356,30]
[423109646,1779856249000,-347.61492,0.00038356,30]
[423109653,1779856249000,-151.0,0.00038356,30]
[423109651,1779856249000,-1664.813739,0.00038356,30]
[423109648,1779856249000,-151.0,0.00038356,30]
[423109650,1779856249000,-1664.813739,0.00038356,30]
[423109654,1779856249000,-1664.813739,0.00038356,30]
[423109660,1779856249000,-151.0,0.00038356,30]
[423109659,1779856249000,-324.289581,0.00038356,30]
[423109656,1779856249000,-558.740342,0.00038356,30]
[423109657,1779856249000,-558.740342,0.00038356,30]
[423109658,1779856249000,-151.0,0.00038356,30]
[423109662,1779856249000,-1664.813739,0.00038356,30]
[423109670,1779856249000,-324.289581,0.00038356,30]
[423109671,1779856249000,-324.289581,0.00038356,30]
[423109661,1779856249000,-324.289581,0.00038356,30]
[423109672,1779856249000,-151.0,0.00038356,30]
[423109664,1779856249000,-1664.813739,0.00038356,30]
[423109663,1779856249000,-151.0,0.00038356,30]
[423109668,1779856249000,-558.740342,0.00038356,30]
[423109667,1779856249000,-558.740342,0.00038356,30]
[423109700,1779856249000,-151.0,0.00038356,30]
[423109710,1779856249000,-151.0,0.00038356,30]
[423109704,1779856249000,-151.0,0.00038356,30]
[423109737,1779856249000,-1475.792858,0.00038356,30]
[423109729,1779856249000,-2091.857124,0.00038356,30]
[423109736,1779856249000,-474.052995,0.00038356,30]
[423109728,1779856249000,-474.052995,0.00038356,30]
[423109738,1779856249000,-474.052995,0.00038356,30]
[423109739,1779856249000,-2091.857124,0.00038356,30]
[423109743,1779856249000,-1475.792858,0.00038356,30]
[423109741,1779856249000,-2091.857124,0.00038356,30]
[423109742,1779856249000,-2091.857124,0.00038356,30]
[423109750,1779856249000,-2091.857124,0.00038356,30]
[423109747,1779856249000,-1475.792858,0.00038356,30]
[423109751,1779856249000,-1475.792858,0.00038356,30]
[423109733,1779856249000,-2091.857124,0.00038356,30]
[423109744,1779856249000,-151.0,0.00038356,30]
[423109745,1779856249000,-1475.792858,0.00038356,30]
[423109740,1779856249000,-474.052995,0.00038356,30]
[423109749,1779856249000,-2091.857124,0.00038356,30]
[423109701,1779856249000,-151.0,0.00038356,30]
[423109755,1779856249000,-151.0,0.00038356,30]
[423109752,1779856249000,-2091.857124,0.00038356,30]
[423109753,1779856249000,-1475.792858,0.00038356,30]
[423109754,1779856249000,-1475.792858,0.00038356,30]
[423109757,1779856249000,-151.0,0.00038356,30]
[423109759,1779856249000,-151.0,0.00038356,30]
[423109758,1779856249000,-176.8506,0.00038356,30]
[423109756,1779856249000,-151.0,0.00038356,30]
[423109748,1779856249000,-275.604903,0.00038356,30]
[423109726,1779856249000,-474.052995,0.00038356,30]
[423109746,1779856249000,-151.0,0.00038356,30]
[423109731,1779856249000,-474.052995,0.00038356,30]
[423109734,1779856249000,-1475.792858,0.00038356,30]
[423109703,1779856249000,-151.0,0.00038356,30]
[423109702,1779856249000,-151.0,0.00038356,30]
[423109699,1779856249000,-152.14509,0.00038356,30]
[423109705,1779856249000,-151.0,0.00038356,30]
[423109706,1779856249000,-151.0,0.00038356,30]
[423109709,1779856249000,-151.0,0.00038356,30]
[423109711,1779856249000,-151.0,0.00038356,30]
[423109707,1779856249000,-151.0,0.00038356,30]
[423109708,1779856249000,-151.0,0.00038356,30]
[423109714,1779856249000,-474.052995,0.00038356,30]
[423109723,1779856249000,-474.052995,0.00038356,30]
[423109722,1779856249000,-2091.857124,0.00038356,30]
[423109712,1779856249000,-151.0,0.00038356,30]
[423109715,1779856249000,-474.052995,0.00038356,30]
[423109735,1779856249000,-1475.792858,0.00038356,30]
[423109724,1779856249000,-2091.857124,0.00038356,30]
[423109732,1779856249000,-2091.857124,0.00038356,30]
[423109730,1779856249000,-1475.792858,0.00038356,30]
[423109721,1779856249000,-474.052995,0.00038356,30]
[423109718,1779856249000,-474.052995,0.00038356,30]
[423109727,1779856249000,-1475.792858,0.00038356,30]
[423109720,1779856249000,-295.951981,0.00038356,30]
[423109719,1779856249000,-2091.857124,0.00038356,30]
[423109725,1779856249000,-1475.792858,0.00038356,30]
[423109716,1779856249000,-151.0,0.00038356,30]
[423109713,1779856249000,-474.052995,0.00038356,30]
[423109717,1779856249000,-151.0,0.00038356,30]
[423109780,1779856250000,-1061.574175,0.00038356,30]
[423109784,1779856250000,-1061.574175,0.00038356,30]
[423109781,1779856250000,-182.202885,0.00038356,30]
[423109783,1779856250000,-1061.574175,0.00038356,30]
[423109785,1779856250000,-1061.574175,0.00038356,30]
[423109782,1779856250000,-1061.574175,0.00038356,30]
[423109786,1779856250000,-1061.574175,0.00038356,30]
[423109800,1779856250000,-1808.076865,0.00038356,30]
[423109793,1779856250000,-1808.076865,0.00038356,30]
[423109792,1779856250000,-1061.574175,0.00038356,30]
[423109791,1779856250000,-1808.076865,0.00038356,30]
[423109794,1779856250000,-1061.574175,0.00038356,30]
[423109795,1779856250000,-1808.076865,0.00038356,30]